bitfinex/quotes_ETHUSD_20220310
["timestamp","ask_amount","ask_price","bid_price","bid_amount"]
[1646916547714,4.17764292,2606.5,2606.2,2.87729]
[1646916547715,4.17764292,2606.5,2606.2,0.32634661]
[1646916547914,3.43329337,2606.5,2605.8,4.53556172]
[1646916548114,0.06439567,2606.5,2605.9,0.06438685]
[1646916548315,0.08430223,2606.4,2606.0,0.553]
[1646916548674,0.214436,2607.1,2606.0,0.553]
[1646916548675,1.56341416,2606.6,2606.2,2.32429]
[1646916548864,0.06744063,2607.0,2606.3,0.553]
[1646916549060,0.06744063,2607.0,2606.4,0.553]
[1646916549260,0.41932012,2607.0,2606.5,0.553]
[1646916549461,0.07727532,2606.9,2606.6,0.553]
[1646916550961,0.02686873,2606.8,2606.6,2.47113]
[1646916551366,0.02686873,2606.8,2606.6,3.1778512]
[1646916551863,0.02686873,2606.8,2606.7,0.7067212]
[1646916552263,0.02686873,2606.8,2606.6,2.6248512]
[1646916552512,0.02686873,2606.8,2606.7,0.553]
[1646916553012,0.02686873,2606.8,2606.7,1.2597212]
[1646916553212,0.02686873,2606.8,2606.7,0.553]
[1646916553915,0.02686873,2606.8,2606.6,2.0268512]
[1646916554113,0.02686873,2606.8,2606.6,2.5798512]
[1646916554513,2.32768509,2606.8,2606.6,3.8798512]
[1646916554715,2.32768509,2606.8,2606.6,3.17313]
[1646916554914,2.30081636,2606.8,2606.6,13.68524845]
[1646916555115,0.78330363,2606.8,2606.7,0.70630699]
[1646916555415,0.78330363,2606.8,2606.7,0.553]
[1646916555615,0.80681377,2606.8,2606.7,1.25921951]
[1646916555816,0.71184516,2606.8,2606.7,1.25921951]
[1646916556859,0.71184516,2606.8,2606.7,16.83951998]
[1646916557261,0.71184516,2606.8,2606.7,18.91492612]
[1646916557662,0.02351014,2606.8,2606.7,18.91492612]
[1646916558264,0.02351014,2606.8,2606.7,18.13951998]
[1646916558463,0.02351014,2606.8,2606.7,19.21492612]
[1646916558664,0.02351014,2606.8,2606.7,18.13951998]
[1646916559264,0.02351014,2606.8,2606.7,18.91492612]
[1646916559465,0.02351014,2606.8,2606.7,18.20870661]
[1646916559764,0.02351014,2606.8,2606.7,17.43330047]
[1646916560013,0.02351014,2606.8,2606.7,18.50870661]
[1646916560215,0.02351014,2606.8,2606.7,17.43330047]
[1646916560813,0.02351014,2606.8,2606.7,18.50870661]
[1646916561015,0.02351014,2606.8,2606.7,15.89945748]
[1646916561213,0.02351014,2606.8,2606.7,16.97486362]
[1646916561620,0.02351014,2606.8,2606.7,15.89945748]
[1646916561812,0.02351014,2606.8,2606.7,16.97486362]
[1646916562212,0.02351014,2606.8,2606.7,15.89945748]
[1646916562414,0.07872568,2607.4,2606.7,16.97486362]
[1646916562620,0.00353733,2607.2,2606.9,0.95905]
[1646916562819,0.00353733,2607.2,2606.9,2.58745614]
[1646916563017,0.00353733,2607.2,2607.0,31.1717102]
[1646916563216,0.00353733,2607.2,2607.1,31.17119907]
[1646916563419,5.45744854,2607.6,2607.1,21.05542431]
[1646916563668,1.9185916,2607.6,2607.1,22.00444431]
[1646916563858,0.00353755,2607.3,2607.2,11.14728449]
[1646916564266,0.385,2607.5,2607.1,0.95902]
[1646916564562,0.385,2607.5,2606.6,0.01160629]
[1646916564563,0.385,2607.3,2606.6,0.01160629]
[1646916564763,0.385,2607.3,2606.6,0.00515539]
[1646916564764,1.3939926,2606.9,2606.6,0.00515539]
[1646916564961,1.44034532,2606.9,2606.6,0.00515539]
[1646916565161,2.39981532,2606.9,2606.6,0.00515539]
[1646916565763,2.39981532,2606.9,2606.2,0.70548721]
[1646916565764,0.3429146,2606.8,2606.2,0.70548721]
[1646916565963,0.385,2606.7,2606.6,0.00643009]
[1646916566163,0.95957,2606.3,2605.9,0.70548721]
[1646916566363,1.01189256,2606.3,2605.9,0.70548721]
[1646916566563,0.1918,2606.7,2605.9,0.70548721]
[1646916566767,0.04668717,2606.6,2606.1,2.62429721]
[1646916566963,0.02440136,2606.8,2606.1,2.62429721]
[1646916567166,0.1918,2606.7,2606.2,0.95941]
[1646916567427,0.1918,2606.7,2606.1,0.48197542]
[1646916567428,1.07818528,2606.5,2606.1,0.48197542]
[1646916567628,0.05150189,2606.4,2606.2,0.0035351]
[1646916567927,0.07361303,2606.8,2606.2,0.0035351]
[1646916568129,0.02440136,2606.8,2606.3,1.66494721]
[1646916568328,0.02440136,2606.8,2606.4,1.32876926]
[1646916568528,0.02440136,2606.8,2606.1,0.08106012]
[1646916568727,0.02440136,2606.8,2606.2,0.553]
[1646916569029,0.02440136,2606.8,2606.3,0.553]
[1646916569227,0.02440136,2606.8,2605.8,0.02351068]
[1646916569529,0.02440136,2606.8,2606.4,1.06469399]
[1646916569726,0.02440136,2606.8,2606.4,0.55056097]
[1646916569927,0.02440136,2606.8,2606.4,0.09573117]
[1646916570128,0.02440136,2606.8,2606.2,2.80321571]
[1646916570330,0.02440136,2606.8,2606.3,0.11706082]
[1646916570528,0.02440136,2606.8,2606.2,2.42770391]
[1646916570730,0.02440136,2606.8,2606.5,0.95918]
[1646916570928,0.02440136,2606.8,2606.5,0.89554369]
[1646916571174,0.02440136,2606.8,2606.5,0.49523566]
[1646916571360,0.02440136,2606.8,2606.5,0.34931624]
[1646916571561,0.02440136,2606.8,2606.5,0.78186065]
[1646916571763,0.02440136,2606.8,2606.5,0.75397568]
[1646916571960,0.02440136,2606.8,2606.5,0.64162707]
[1646916572163,0.02440136,2606.8,2606.5,0.58712485]
[1646916572564,0.02440136,2606.8,2606.5,0.49950595]
[1646916573566,0.02440136,2606.8,2606.5,1.45868595]
[1646916574168,0.02440136,2606.8,2606.5,0.95918]
[1646916574367,0.02440136,2606.8,2606.5,25.34328]
[1646916574569,0.02440136,2606.8,2606.6,0.94984339]
[1646916575217,1.36882716,2606.8,2606.5,24.3841]
[1646916575419,1.36882716,2606.8,2606.6,0.95939]
[1646916576018,2.32828716,2606.8,2606.5,24.3841]
[1646916576422,4.24731156,2606.8,2606.5,24.3841]
[1646916576621,4.24731156,2606.8,2606.5,24.3033497]
[1646916577118,4.24731156,2606.8,2606.5,24.27124432]
[1646916578424,4.43911156,2606.8,2606.5,24.27124432]
[1646916579060,0.98382716,2606.8,2606.5,24.27124432]
[1646916579262,0.32440136,2606.8,2606.6,0.9594]
[1646916579459,0.32440136,2606.8,2606.5,23.6951349]
[1646916579863,0.02440136,2606.8,2606.6,0.90401203]
[1646916580261,0.02440136,2606.8,2606.6,1.86341203]
[1646916580661,0.02440136,2606.8,2606.6,2.56971244]
[1646916581058,0.02440136,2606.8,2606.7,0.42038843]
[1646916583319,1.57414608,2606.8,2606.7,0.42038843]
[1646916583520,1.57414608,2606.8,2606.3,0.003513]
[1646916583717,1.54974472,2606.7,2606.3,0.003513]
[1646916583919,0.385,2606.7,2606.3,0.003513]
[1646916584117,0.385,2606.7,2606.2,0.70630041]
[1646916584517,0.385,2606.7,2606.3,0.00354921]
[1646916584717,0.02440136,2606.8,2606.3,0.00354921]
[1646916584918,0.02440136,2606.8,2606.3,0.42393764]
[1646916584919,0.385,2606.6,2606.3,0.42393764]
[1646916585121,0.385,2606.6,2606.4,0.42038843]
[1646916585122,1.55016263,2606.6,2606.4,0.42038843]
[1646916585319,1.55016263,2606.6,2606.1,1.66587041]
[1646916585517,0.07437375,2606.5,2606.1,0.95957]
[1646916585718,0.07437375,2606.5,2606.3,0.00354917]
[1646916585920,0.07437375,2606.5,2606.1,1.24548194]
[1646916586965,0.07437375,2606.5,2605.9,0.70630041]
[1646916588066,0.06117256,2606.4,2606.1,1.00355018]
[1646916588268,0.05980801,2606.3,2606.1,1.00355018]
[1646916589067,0.05980801,2606.3,2606.1,1.0]
[1646916589268,0.05980801,2606.3,2606.1,2.00355018]
[1646916590218,0.05980801,2606.3,2606.1,2.0]
[1646916590419,0.05980801,2606.3,2606.1,2.00355018]
[1646916590815,0.05980801,2606.3,2606.1,1.97816019]
[1646916591214,0.25160801,2606.3,2606.1,1.91572054]
[1646916591417,0.25160801,2606.3,2606.1,1.91217036]
[1646916591716,7.04781373,2606.3,2606.1,0.00354409]
[1646916591917,13.31341126,2606.2,2606.1,0.00354409]
[1646916592115,14.76522126,2606.2,2606.1,0.00354409]
[1646916592315,15.69679301,2606.2,2606.1,0.00354409]
[1646916592520,1.61431152,2605.6,2604.9,0.52405357]
[1646916592719,1.61431152,2605.6,2604.6,3.33232087]
[1646916592922,1.61431152,2605.6,2604.7,0.0141838]
[1646916593319,0.385,2605.8,2604.9,0.95997]
[1646916593762,0.385,2605.8,2604.9,1.25997]
[1646916593964,0.385,2605.8,2604.9,0.3]
[1646916594161,0.385,2605.8,2604.8,2.21975]
[1646916594362,0.385,2605.8,2604.9,1.0]
[1646916594363,1.25346465,2605.8,2604.9,1.0]
[1646916595164,1.25346465,2605.8,2605.2,0.95974]
[1646916595363,1.25346465,2605.8,2605.2,0.96118968]
[1646916595963,0.86846465,2605.8,2605.2,0.96118968]
[1646916596166,1.25346465,2605.8,2605.2,0.95974]
[1646916596363,1.25346465,2605.8,2605.1,1.91947]
[1646916596565,1.25346465,2605.8,2605.4,0.00356951]
[1646916596966,0.86846465,2605.8,2605.4,0.00356951]
[1646916597167,1.82833575,2605.8,2605.4,0.00356951]
[1646916597411,1.82833575,2605.8,2605.1,1.91947]
[1646916597617,1.82833575,2605.8,2605.1,2.91947]
[1646916597815,1.82833575,2605.8,2605.5,0.00356946]
[1646916598220,0.9598711,2605.8,2605.5,0.00356946]
[1646916598617,1.15163,2606.0,2605.3,0.95982]
[1646916598818,0.00018,2605.2,2605.1,2.91947]
[1646916599218,1.45163,2606.0,2605.1,2.91947]
[1646916599620,1.45163,2606.0,2605.1,1.95828032]
[1646916600020,0.95986,2605.9,2605.4,0.0035659]
[1646916600619,2.151649,2606.0,2605.4,0.0035659]
[1646916600823,0.1918,2606.0,2605.4,0.0035659]
[1646916601020,0.1918,2606.0,2605.1,1.95828032]
[1646916601267,0.004,2605.4,2605.1,1.95828032]
[1646916601467,0.0333116,2605.8,2605.1,1.95828032]
[1646916601862,0.0333116,2605.8,2605.2,0.95971]
[1646916602066,0.0333116,2605.8,2605.3,0.938]
[1646916602262,0.0333116,2605.8,2605.3,2.8573]
[1646916602667,0.0333116,2605.8,2605.4,0.00356645]
[1646916603471,0.0333116,2605.8,2605.3,1.9193]
[1646916603668,1.24767175,2605.8,2605.5,0.0035664]
[1646916603868,0.06725043,2605.7,2605.5,0.0035664]
[1646916604268,0.0333116,2605.8,2605.5,0.0035664]
[1646916604467,0.07053566,2605.6,2605.5,0.0035664]
[1646916604669,0.07053566,2605.6,2605.1,1.0]
[1646916604911,0.07053566,2605.6,2605.5,0.00356637]
[1646916605312,0.07053566,2605.6,2605.5,1.00356637]
[1646916605513,0.07053566,2605.6,2605.5,1.37555099]
[1646916605812,0.07053566,2605.6,2605.5,1.37198462]
[1646916606812,0.0333116,2605.8,2605.5,1.37198462]
[1646916607013,0.0333116,2605.8,2605.6,0.37198462]
[1646916607213,0.05695688,2605.7,2605.6,0.37198462]
[1646916608018,1.31355651,2606.0,2605.6,0.37198462]
[1646916609060,0.95986,2605.9,2605.6,0.37198462]
[1646916609461,1.31355651,2606.0,2605.7,0.95971]
[1646916609462,0.04691745,2606.0,2605.7,0.95971]
[1646916609766,0.04691745,2606.0,2605.8,0.37198462]
[1646916609961,0.04691745,2606.0,2605.9,0.37198462]
[1646916611661,0.04691745,2606.0,2605.9,2.87198462]
[1646916612062,0.04691745,2606.0,2605.9,2.5]
[1646916614516,0.04691745,2606.0,2605.9,5.0]
[1646916616184,0.08122126,2606.0,2605.9,7.5]
[1646916617481,0.03430381,2606.0,2605.9,7.5]
[1646916618481,0.03430381,2606.0,2605.9,6.25754622]
[1646916619287,0.05700586,2606.4,2605.9,6.25754622]
[1646916619486,0.04792009,2606.7,2605.9,7.18552055]
[1646916619682,0.06444001,2607.0,2605.9,7.57052055]
[1646916619916,0.06444001,2607.0,2606.0,0.07572678]
[1646916620215,0.05019441,2607.0,2606.0,0.07572678]
[1646916620615,0.06444164,2607.0,2606.0,0.07929]
[1646916621015,0.06444164,2607.0,2606.0,1.03865]
[1646916621419,0.06444164,2607.0,2606.3,0.9593]
[1646916621617,0.05019441,2607.0,2606.3,0.9593]
[1646916621823,0.06444169,2607.0,2606.3,0.9593]
[1646916622019,0.01424728,2607.0,2606.3,0.9593]
[1646916622419,0.01424728,2607.0,2606.3,3.4593]
[1646916622622,0.05246482,2607.4,2606.3,4.41856]
[1646916622822,1.07165699,2607.2,2606.6,0.95931]
[1646916623022,0.05503568,2607.1,2606.6,0.95931]
[1646916623422,0.05503568,2607.1,2606.5,1.91861]
[1646916623673,0.05503568,2607.1,2606.3,5.0]
[1646916623864,0.0568312,2607.0,2606.3,5.0]
[1646916624664,0.0568312,2607.0,2606.3,4.0407]
[1646916625066,0.385,2606.9,2606.3,4.0407]
[1646916625264,0.04992511,2606.8,2606.3,4.01227223]
[1646916625464,0.1918,2606.7,2606.3,4.00796152]
[1646916625665,0.1918,2606.7,2606.3,3.96523252]
[1646916626169,1.47307681,2606.6,2606.3,3.96523252]
[1646916626365,0.05641533,2606.5,2606.3,3.96523252]
[1646916627521,13.0947564,2606.5,2606.3,3.96523252]
[1646916627719,0.1918,2606.4,2606.3,3.96523252]
[1646916628123,0.1918,2606.4,2606.3,2.26212459]
[1646916628521,12.8798,2606.4,2606.3,2.26212459]
[1646916628722,14.1798,2606.4,2606.3,2.26212459]
[1646916629722,2.4298,2606.4,2606.3,2.26212459]
[1646916630122,1.4298,2606.4,2606.3,2.2074307]
[1646916630926,0.8768,2606.4,2606.3,2.2074307]
[1646916631181,0.685,2606.4,2606.3,2.2074307]
[1646916631571,0.685,2606.4,2606.3,0.67121948]
[1646916632074,1.91512912,2606.4,2606.3,0.67121948]
[1646916633778,1.91512912,2606.4,2606.3,0.62311426]
[1646916633976,13.66512912,2606.4,2606.3,0.62311426]
[1646916634176,1.91512912,2606.4,2606.3,0.62311426]
[1646916634379,2.91512912,2606.4,2606.3,0.62311426]
[1646916634579,1.91512912,2606.4,2606.3,0.62311426]
[1646916634776,3.87509912,2606.4,2606.3,0.62311426]
[1646916635017,2.87509912,2606.4,2606.3,0.62311426]
[1646916635216,3.87509912,2606.4,2606.3,0.62311426]
[1646916635418,2.87509912,2606.4,2606.3,0.62311426]
[1646916635617,3.87509912,2606.4,2606.3,0.62311426]
[1646916636019,2.91512912,2606.4,2606.3,0.62311426]
[1646916636219,0.685,2606.4,2606.3,0.62311426]
[1646916636419,2.91522586,2606.4,2606.3,0.62311426]
[1646916637223,2.61522586,2606.4,2606.3,0.62311426]
[1646916637624,1.67360135,2606.4,2606.3,0.62311426]
[1646916637823,2.67360135,2606.4,2606.3,0.62311426]
[1646916638027,1.67360135,2606.4,2606.3,0.62311426]
[1646916638225,1.53022586,2606.4,2606.3,0.62311426]
[1646916638425,1.23022586,2606.4,2605.9,6.25754622]
[1646916638679,1.23022586,2606.4,2606.0,0.35816766]
[1646916639266,0.03898871,2606.5,2606.0,0.81707986]
[1646916639465,0.03898871,2606.5,2606.1,0.43393087]
[1646916639666,0.03898871,2606.5,2606.2,0.35460453]
[1646916639870,1.23010893,2606.4,2606.2,0.35460453]
[1646916640866,1.23010893,2606.4,2606.3,0.35460453]
[1646916641267,1.23010893,2606.4,2606.0,0.35816761]
[1646916641669,1.07003446,2606.2,2606.0,0.28918796]
[1646916642069,1.07003446,2606.2,2605.5,3.08372873]
[1646916642269,1.07003446,2606.2,2605.5,3.38372873]
[1646916642525,1.07003446,2606.2,2605.6,0.07303089]
[1646916642722,1.07003446,2606.2,2605.6,1.16172354]
[1646916642924,1.07003446,2606.2,2605.8,0.07563783]
[1646916644528,1.07003446,2606.2,2605.8,1.07563783]
[1646916644925,3.53898871,2606.5,2605.8,1.07563783]
[1646916645130,3.53898871,2606.5,2605.9,0.95967]
[1646916645827,3.53898871,2606.5,2605.9,0.96351381]
[1646916646372,0.96277395,2606.5,2605.9,0.96351381]
[1646916646573,0.04190478,2606.2,2605.9,0.96351381]
[1646916646871,0.04190478,2606.2,2605.8,2.07563783]
[1646916647072,0.04190478,2606.2,2605.9,0.00384381]
[1646916647372,0.04190478,2606.2,2605.9,1.00384381]
[1646916647972,0.04190478,2606.2,2605.9,1.0]
[1646916648171,0.02301425,2606.2,2605.9,1.96352369]
[1646916648371,0.89679949,2606.5,2605.9,2.96352369]
[1646916648971,0.89679949,2606.5,2605.9,2.00384369]
[1646916649171,0.04748321,2606.4,2605.9,3.0]
[1646916649371,0.04748321,2606.4,2605.9,3.00384381]
[1646916650018,0.04748321,2606.4,2605.9,4.00384381]
[1646916650420,0.04748321,2606.4,2605.9,4.95967]
[1646916650619,0.04748321,2606.4,2605.9,4.9634417]
[1646916650819,0.04748321,2606.4,2605.9,4.42906876]
[1646916651622,0.04748321,2606.4,2605.9,4.42529706]
[1646916651821,0.04748321,2606.4,2605.9,3.46939876]
[1646916652022,0.03850176,2606.1,2605.9,3.46939876]
[1646916652830,0.03850176,2606.1,2605.9,3.46562706]
[1646916653128,0.03850176,2606.1,2605.9,4.42908863]
[1646916653328,0.03211566,2606.0,2605.9,4.42908863]
[1646916653528,0.03211566,2606.0,2605.9,5.42908863]
[1646916653982,1.14560473,2606.0,2605.9,4.46562706]
[1646916656183,1.14560473,2606.0,2605.9,4.45920798]
[1646916656786,2.09764585,2606.6,2605.9,4.45920798]
[1646916656787,0.71619656,2606.7,2605.9,8.25920798]
[1646916656985,0.00355071,2606.7,2606.0,1.01715221]
[1646916657184,0.00355071,2606.7,2606.2,0.08259155]
[1646916657424,0.00355071,2606.7,2606.4,0.08083781]
[1646916657629,0.3836,2607.2,2606.6,0.0814541]
[1646916657830,0.00356408,2606.7,2606.6,0.0814541]
[1646916658036,0.00356408,2606.7,2606.6,4.4709075]
[1646916658231,0.00356408,2606.7,2606.6,4.3894534]
[1646916658833,0.89780784,2606.9,2606.6,3.43033]
[1646916659035,0.00356419,2606.8,2606.6,3.43033]
[1646916659933,0.89780784,2606.9,2606.6,3.43033]
[1646916660234,0.00356416,2606.8,2606.6,3.43033]
[1646916661299,0.90444585,2607.5,2606.6,4.43033]
[1646916661300,1.0739259,2607.3,2606.6,4.43033]
[1646916661485,0.01424685,2607.2,2606.8,0.95924]
[1646916661887,1.23053107,2607.1,2606.9,0.35316246]
[1646916662291,1.23053107,2607.1,2606.7,2.87772]
[1646916662490,1.23053107,2607.1,2606.8,0.35317964]
[1646916662692,1.23053107,2607.0,2606.8,0.35317964]
[1646916662892,0.00356208,2607.1,2606.9,0.95924]
[1646916663392,0.00356208,2607.1,2606.7,0.95924]
[1646916663591,1.23031117,2607.2,2606.6,1.0]
[1646916663791,1.23031117,2607.2,2606.7,0.35322936]
[1646916663992,0.00214317,2607.1,2606.7,0.9594]
[1646916664393,0.00214317,2607.1,2606.6,1.0]
[1646916664593,0.04880031,2607.1,2606.6,1.0]
[1646916664794,0.04665714,2607.1,2606.6,1.0]
[1646916665023,0.00356604,2607.0,2606.6,1.0]
[1646916665422,0.385,2606.8,2606.6,1.0]
[1646916665621,0.42744128,2606.8,2606.6,1.0]
[1646916665826,0.04244128,2606.8,2606.6,1.0]
[1646916666026,0.90780169,2606.9,2606.6,1.0]
[1646916666227,0.90780169,2606.9,2606.6,2.0]
[1646916666429,0.00213957,2606.8,2606.6,2.0]
[1646916667326,0.90780169,2606.9,2606.6,2.0]
[1646916667526,0.00213957,2606.8,2606.6,2.0]
[1646916668330,0.90780169,2606.9,2606.6,2.0]
[1646916668767,0.00384284,2606.8,2606.6,2.0]
[1646916669369,1.14823683,2606.8,2606.6,0.2969028]
[1646916669669,0.43174814,2606.8,2606.6,0.2969028]
[1646916669868,0.43388771,2606.8,2606.6,0.2969028]
[1646916670267,0.43388771,2606.8,2606.1,4.85708]
[1646916670268,0.93793824,2606.4,2606.1,4.57786645]
[1646916670467,0.93793824,2606.4,2606.1,1.91908]
[1646916671370,0.00213927,2606.7,2606.2,0.08419076]
[1646916671570,0.00213927,2606.7,2606.4,0.08816309]
[1646916671771,0.00213927,2606.7,2606.6,0.02319883]
[1646916671972,1.1701,2606.9,2606.6,0.02319883]
[1646916672429,1.13091243,2606.8,2606.6,0.02319883]
[1646916673428,1.12877286,2606.8,2606.6,0.02319883]
[1646916673623,1.1326119,2606.8,2606.6,0.02319883]
[1646916674625,1.12877286,2606.8,2606.6,0.02319883]
[1646916674826,1.13260806,2606.8,2606.6,0.02319883]
[1646916675727,1.12877286,2606.8,2606.6,0.02319883]
[1646916675928,1.12877286,2606.8,2606.6,1.02319883]
[1646916676179,1.13260806,2606.8,2606.6,1.02319883]
[1646916676982,1.12877286,2606.8,2606.6,1.02319883]
[1646916677181,1.13260806,2606.8,2606.7,0.02236238]
[1646916677383,1.13260806,2606.8,2606.7,0.01229238]
[1646916678182,1.12877286,2606.8,2606.7,0.01229238]
[1646916678782,1.12877286,2606.8,2606.7,1.01229238]
[1646916681627,1.12877286,2606.8,2606.7,2.01229238]
[1646916682625,1.12877286,2606.8,2606.7,2.0]
[1646916683671,1.12877286,2606.8,2606.7,1.97515821]
[1646916683876,2.33596986,2606.8,2606.7,2.35381194]
[1646916688327,1.207197,2606.8,2606.7,2.35381194]
[1646916688732,0.00184086,2606.9,2606.7,2.35381194]
[1646916688929,1.207197,2607.0,2606.8,0.37865373]
[1646916689329,0.00352931,2606.9,2606.7,1.40051354]
[1646916689529,0.00352931,2606.9,2606.8,0.38913125]
[1646916690129,1.21072631,2606.9,2606.8,0.38913125]
[1646916690330,1.207197,2606.9,2606.8,0.38913125]
[1646916690531,1.207197,2606.9,2606.8,0.47436485]
[1646916694177,1.207197,2606.9,2606.8,0.38913125]
[1646916694378,1.507197,2606.9,2606.8,0.38913125]
[1646916695030,1.507197,2606.9,2606.7,1.42237117]
[1646916695231,1.207197,2606.8,2606.7,1.42237117]
[1646916697036,1.207197,2606.8,2606.7,1.78075101]
[1646916698236,1.69779878,2606.7,2606.6,2.0792499]
[1646916698676,1.69779878,2606.7,2606.6,2.0]
[1646916698677,1.99779878,2606.7,2606.6,2.0]
[1646916699276,1.10120108,2606.4,2606.3,0.0828148]
[1646916699476,1.10120108,2606.4,2606.0,0.07162829]
[1646916699679,1.10120108,2606.4,2605.9,0.00341298]
[1646916699877,1.10120108,2606.4,2605.8,0.074015]
[1646916700276,1.10120108,2606.4,2605.6,3.749044]
[1646916700277,3.425985,2605.8,2605.6,3.749044]
[1646916700480,3.425985,2605.8,2605.7,2.62306265]
[1646916700875,3.425985,2605.8,2605.7,2.62632325]
[1646916701275,0.87367675,2605.7,2605.6,1.22172135]
[1646916701475,0.87367675,2605.7,2605.6,0.26548773]
[1646916701677,0.87367675,2605.7,2605.5,0.93828183]
[1646916701678,0.87367675,2605.7,2605.3,0.60716765]
[1646916701877,0.87367675,2605.7,2605.3,1.80109802]
[1646916702076,0.87367675,2605.7,2605.3,0.80109802]
[1646916702280,0.07085257,2605.9,2605.3,0.56497802]
[1646916702526,0.07085257,2605.9,2605.4,0.19393037]
[1646916702726,0.06613354,2606.3,2605.4,0.19393037]
[1646916702926,0.06613354,2606.3,2605.4,1.13193037]
[1646916703427,0.06613354,2606.3,2605.3,3.75042889]
[1646916703428,2.36806963,2605.4,2605.3,3.75042889]
[1646916703629,0.66562782,2605.4,2605.3,2.60628124]
[1646916703926,0.66562782,2605.4,2605.3,1.60628124]
[1646916704126,0.06613354,2606.3,2605.4,0.04442144]
[1646916704327,0.07651171,2606.5,2605.5,1.96655571]
[1646916704528,0.07651171,2606.5,2605.6,3.54427853]
[1646916704727,0.37477285,2606.8,2605.8,0.95943]
[1646916705127,0.37477285,2606.8,2605.9,3.5]
[1646916705329,0.37477285,2606.8,2606.0,0.59823632]
[1646916705530,0.37477285,2606.8,2606.0,0.79216669]
[1646916706029,1.9186384,2607.2,2606.1,0.19393037]
[1646916706276,0.00384097,2606.5,2606.2,0.553]
[1646916707178,0.08197004,2606.9,2606.4,1.91849]
[1646916707378,0.003841,2606.5,2606.4,1.91849]
[1646916707583,0.003841,2606.5,2606.4,0.95906]
[1646916708181,0.003841,2606.5,2606.4,4.45906]
[1646916708382,0.38197004,2606.9,2606.4,4.45906]
[1646916708682,0.00214214,2606.6,2606.4,4.45906]
[1646916709387,0.04910577,2606.8,2606.4,4.45906]
[1646916709935,0.00370722,2606.6,2606.4,4.45906]
[1646916710526,0.00370722,2606.6,2606.5,0.553]
[1646916710727,1.1558,2607.6,2606.5,4.053]
[1646916710728,0.98516012,2607.6,2606.5,4.053]
[1646916710925,0.26060991,2607.5,2606.7,1.91838]
[1646916711125,0.26060991,2607.5,2606.7,1.98113436]
[1646916711126,0.00856729,2607.0,2606.7,1.98113436]
[1646916711726,0.00856729,2607.0,2606.9,3.5]
[1646916712026,1.17696012,2607.6,2606.9,5.41833]
[1646916712027,0.05945229,2607.5,2606.9,5.41833]
[1646916712227,0.00214214,2607.0,2606.9,5.97133]
[1646916712429,0.00214214,2607.0,2606.9,9.47133]
[1646916712634,0.00856729,2607.4,2607.0,60.37674]
[1646916712832,0.00856729,2607.4,2607.1,2.38409103]
[1646916713031,0.00856729,2607.4,2607.3,3.5]
[1646916713232,0.05913312,2607.7,2607.3,3.5]
[1646916713874,0.05913312,2607.7,2607.3,3.49]
[1646916714478,0.05913312,2607.7,2607.3,4.44893]
[1646916714677,0.00214054,2607.6,2607.3,4.44893]
[1646916715077,0.00214054,2607.6,2607.3,2.91364752]
[1646916715577,1.12008218,2607.7,2607.3,2.91364752]
[1646916715778,0.00214054,2607.6,2607.3,2.91364752]
[1646916716583,0.06920973,2607.6,2607.3,2.91364752]
[1646916716782,0.06706919,2607.6,2607.3,2.91364752]
[1646916716983,0.07090542,2607.6,2607.3,2.91364752]
[1646916717183,0.04444825,2607.4,2607.3,2.91364752]
[1646916718031,0.04444825,2607.4,2607.3,2.87276752]
[1646916718231,0.04444825,2607.4,2607.3,3.15866771]
[1646916718632,1.34102326,2607.4,2607.3,3.15866771]
[1646916720236,2.27102326,2607.4,2607.3,3.15866771]
[1646916720438,2.27102326,2607.4,2607.3,2.87276752]
[1646916721582,2.27102326,2607.4,2607.2,1.91785]
[1646916721583,2.57102326,2607.4,2607.2,1.91785]
[1646916721781,1.29657501,2607.3,2607.2,1.91785]
[1646916721979,0.54215,2607.2,2606.9,1.91842]
[1646916722181,1.55526849,2607.2,2607.0,0.28606732]
[1646916722381,1.29642931,2607.1,2606.9,1.91842]
[1646916722586,1.29642931,2607.1,2606.5,9.7384]
[1646916722587,0.9594169,2607.0,2606.5,11.6571]
[1646916722784,1.59642931,2606.9,2606.6,0.2866817]
[1646916722988,1.83642931,2606.8,2606.7,0.95934]
[1646916723184,1.83642931,2606.8,2606.7,1.2460217]
[1646916723383,2.13642931,2606.8,2606.7,1.2460217]
[1646916723585,1.83642931,2606.8,2606.7,1.2460217]
[1646916724186,2.13642931,2606.8,2606.7,0.2866817]
[1646916724388,2.13642931,2606.8,2606.5,1.9187]
[1646916724586,0.84,2606.8,2606.6,0.28677828]
[1646916724787,0.54,2606.8,2606.6,0.28677828]
[1646916725030,1.29625737,2606.7,2606.6,0.28677828]
[1646916725231,1.29625737,2606.7,2606.0,13.9809]
[1646916725431,1.29625737,2606.7,2606.1,0.28697774]
[1646916726029,1.29625737,2606.7,2605.9,2.8522]
[1646916726030,1.15212227,2606.4,2606.0,0.28697774]
[1646916726230,2.11174137,2606.4,2606.1,0.28697774]
[1646916726431,2.11174137,2606.4,2606.2,0.28697774]
[1646916726432,1.68131605,2606.3,2606.2,0.28697774]
[1646916726629,1.68131605,2606.3,2605.7,3.5]
[1646916726830,0.385,2606.1,2605.8,0.28718071]
[1646916727033,0.385,2605.9,2605.1,0.70463743]
[1646916727230,1.06463124,2605.5,2605.2,0.28727138]
[1646916727433,1.06463124,2605.5,2605.3,0.28727138]
[1646916727636,1.74963124,2605.5,2605.4,0.28727138]
[1646916727834,0.385,2605.4,2604.9,0.70463743]
[1646916728037,0.385,2605.4,2605.0,2.765e-05]
[1646916728238,0.385,2605.4,2604.7,0.70128701]
[1646916728880,0.385,2605.4,2604.4,1.49451563]
[1646916729079,0.385,2605.4,2604.9,0.00383422]
[1646916729279,2.13652412,2605.3,2604.9,0.00383422]
[1646916729480,1.89003981,2605.3,2604.9,0.00383422]
[1646916729779,0.71348959,2605.3,2604.9,0.00383422]
[1646916729980,0.685,2605.5,2605.0,0.95995]
[1646916730384,3.5,2605.4,2605.0,0.95995]
[1646916730785,0.3,2605.5,2605.0,0.95995]
[1646916730983,5.61158,2605.8,2605.0,0.95995]
[1646916731384,5.41978,2605.8,2605.0,0.95995]
[1646916731582,0.06168816,2605.7,2605.1,3.5]
[1646916731782,0.9598671,2605.6,2605.4,0.02932619]
[1646916731982,0.07038853,2605.5,2605.4,0.02932619]
[1646916734135,3.57038853,2605.5,2605.4,0.02932619]
[1646916734333,3.16605972,2605.6,2605.4,0.02932619]
[1646916734535,2.20613972,2605.6,2605.4,0.02932619]
[1646916735032,2.20613972,2605.6,2605.4,0.03315606]
[1646916735233,1.2598671,2605.6,2605.4,0.03315606]
[1646916736042,1.2598671,2605.6,2605.4,0.02932619]